[Event "*** Titled Tuesday Blitz"]
[Site "Chess.com"]
[Date "2021.02.02"]
[Round "4"]
[White "IngOscarArdila"]
[Black "ApacheSVD"]
[Result "1-0"]
[WhiteElo "2239"]
[BlackElo "2416"]
[TimeControl "180+1"]
[EndTime "10:41:28 PST"]
[Termination "IngOscarArdila won by checkmate"]

1. d4 {[%clk 0:03:00.9]} 1... d5 {[%clk 0:02:57.6]} 2. Nf3 {[%clk 0:02:59.4]}
2... e6 {[%clk 0:02:55.4]} 3. g3 {[%clk 0:02:59.9]} 3... Nf6 {[%clk 0:02:55.1]}
4. Bg2 {[%clk 0:03:00.4]} 4... Be7 {[%clk 0:02:55.7]} 5. O-O {[%clk 0:03:00.5]}
5... O-O {[%clk 0:02:56.3]} 6. Nbd2 {[%clk 0:03:00.4]} 6... Nbd7 {[%clk
0:02:52.2]} 7. b3 {[%clk 0:03:00.4]} 7... b5 {[%clk 0:02:50.4]} 8. a4 {[%clk
0:02:58.4]} 8... c6 {[%clk 0:02:46.5]} 9. Bb2 {[%clk 0:02:55.5]} 9... Bb7 {[%clk
0:02:45]} 10. Ne5 {[%clk 0:02:44.8]} 10... b4 {[%clk 0:02:31.4]} 11. Ndf3 {[%clk
0:02:38]} 11... Rc8 {[%clk 0:02:24]} 12. Re1 {[%clk 0:02:22]} 12... a5 {[%clk
0:02:22.8]} 13. Rc1 {[%clk 0:02:20.1]} 13... Ba6 {[%clk 0:02:22.5]} 14. Nxd7
{[%clk 0:02:14.8]} 14... Nxd7 {[%clk 0:02:20.7]} 15. Ne5 {[%clk 0:02:15.4]}
15... Nxe5 {[%clk 0:02:18.1]} 16. dxe5 {[%clk 0:02:15.2]} 16... c5 {[%clk
0:02:16.4]} 17. e4 {[%clk 0:02:14.6]} 17... dxe4 {[%clk 0:02:12.9]} 18. Bxe4
{[%clk 0:02:12]} 18... Qxd1 {[%clk 0:02:12.3]} 19. Rcxd1 {[%clk 0:02:11.6]}
19... Rfd8 {[%clk 0:02:13]} 20. f4 {[%clk 0:02:04.7]} 20... c4 {[%clk
0:02:10.1]} 21. Kg2 {[%clk 0:01:51.3]} 21... c3 {[%clk 0:01:57.1]} 22. Bc1
{[%clk 0:01:50.8]} 22... h6 {[%clk 0:01:54.5]} 23. Be3 {[%clk 0:01:50.3]} 23...
Rb8 {[%clk 0:01:14.3]} 24. Kf3 {[%clk 0:01:49.6]} 24... Kf8 {[%clk 0:01:13]} 25.
h3 {[%clk 0:01:49.2]} 25... Rxd1 {[%clk 0:01:08]} 26. Rxd1 {[%clk 0:01:49]}
26... Rd8 {[%clk 0:01:01.4]} 27. Rxd8+ {[%clk 0:01:47.5]} 27... Bxd8 {[%clk
0:01:02.3]} 28. Bc5+ {[%clk 0:01:47.8]} 28... Kg8 {[%clk 0:00:56.5]} 29. g4
{[%clk 0:01:45.5]} 29... g6 {[%clk 0:00:55.9]} 30. Ke3 {[%clk 0:01:37.7]} 30...
Kg7 {[%clk 0:00:46.3]} 31. Bg2 {[%clk 0:01:23.9]} 31... h5 {[%clk 0:00:34.7]}
32. Bf3 {[%clk 0:01:11.2]} 32... hxg4 {[%clk 0:00:32]} 33. hxg4 {[%clk
0:01:11.4]} 33... Bc8 {[%clk 0:00:18.4]} 34. Be4 {[%clk 0:01:10.7]} 34... g5
{[%clk 0:00:14.6]} 35. f5 {[%clk 0:01:09]} 35... exf5 {[%clk 0:00:14.2]} 36.
gxf5 {[%clk 0:01:09.4]} 36... Bc7 {[%clk 0:00:13.9]} 37. Bd4 {[%clk 0:01:09]}
37... Kf8 {[%clk 0:00:13]} 38. Kf3 {[%clk 0:01:08.1]} 38... Bd8 {[%clk
0:00:10.7]} 39. Kg4 {[%clk 0:01:07.9]} 39... Ba6 {[%clk 0:00:09.7]} 40. f6
{[%clk 0:01:06.6]} 40... Be2+ {[%clk 0:00:06.9]} 41. Kxg5 {[%clk 0:01:06.2]}
41... Bd1 {[%clk 0:00:05.4]} 42. Bc5+ {[%clk 0:01:05.7]} 42... Kg8 {[%clk
0:00:04.8]} 43. Kh6 {[%clk 0:01:05.2]} 43... Bc7 {[%clk 0:00:02.6]} 44. Bh7+
{[%clk 0:01:04.7]} 44... Kh8 {[%clk 0:00:02.5]} 45. Bf8 {[%clk 0:01:03]} 45...
Bxe5 {[%clk 0:00:01.2]} 46. Bg7# {[%clk 0:01:02.9]} 1-0

[Event "*** Titled Tuesday Blitz"]
[Site "Chess.com"]
[Date "2021.02.02"]
[Round "4"]
[White "AlexeiShirov"]
[Black "Margency"]
[Result "1-0"]
[WhiteElo "2833"]
[BlackElo "2626"]
[TimeControl "180+1"]
[EndTime "10:41:29 PST"]
[Termination "AlexeiShirov won by resignation"]

1. e4 {[%clk 0:03:00.9]} 1... c5 {[%clk 0:02:58.9]} 2. Nf3 {[%clk 0:03:00.7]}
2... d6 {[%clk 0:02:59.1]} 3. d4 {[%clk 0:03:00.5]} 3... cxd4 {[%clk 0:02:59.4]}
4. Nxd4 {[%clk 0:03:00.5]} 4... Nf6 {[%clk 0:02:59.8]} 5. Nc3 {[%clk 0:03:00.4]}
5... a6 {[%clk 0:03:00]} 6. h3 {[%clk 0:02:59.2]} 6... e6 {[%clk 0:02:59.9]} 7.
g4 {[%clk 0:02:58.4]} 7... h6 {[%clk 0:03:00.4]} 8. Bg2 {[%clk 0:02:50.7]} 8...
g5 {[%clk 0:02:58.3]} 9. b3 {[%clk 0:02:43.7]} 9... Nbd7 {[%clk 0:02:56.7]} 10.
Bb2 {[%clk 0:02:43.2]} 10... Ne5 {[%clk 0:02:55]} 11. Qd2 {[%clk 0:02:41.2]}
11... Ng6 {[%clk 0:02:46.1]} 12. O-O-O {[%clk 0:02:39.7]} 12... Nd7 {[%clk
0:02:44.5]} 13. Nce2 {[%clk 0:02:34.1]} 13... Nde5 {[%clk 0:02:43.4]} 14. Kb1
{[%clk 0:02:28.7]} 14... Bd7 {[%clk 0:02:41.7]} 15. f4 {[%clk 0:02:25.8]} 15...
gxf4 {[%clk 0:02:41.5]} 16. Nxf4 {[%clk 0:02:25.7]} 16... Nxf4 {[%clk 0:02:39]}
17. Qxf4 {[%clk 0:02:25.3]} 17... Qg5 {[%clk 0:02:39]} 18. Qf2 {[%clk
0:02:17.7]} 18... Be7 {[%clk 0:02:26.4]} 19. Rdf1 {[%clk 0:02:12.1]} 19... Rh7
{[%clk 0:02:07.9]} 20. Nf3 {[%clk 0:02:04.9]} 20... Nxf3 {[%clk 0:02:05.7]} 21.
Bxf3 {[%clk 0:02:01.7]} 21... Bc6 {[%clk 0:02:03.8]} 22. h4 {[%clk 0:01:55.7]}
22... Qg6 {[%clk 0:01:56.2]} 23. e5 {[%clk 0:01:53]} 23... Bxf3 {[%clk
0:01:44.9]} 24. Qxf3 {[%clk 0:01:52.4]} 24... d5 {[%clk 0:01:41]} 25. h5 {[%clk
0:01:45.8]} 25... Qg5 {[%clk 0:01:33.3]} 26. Qd3 {[%clk 0:01:44.7]} 26... Rh8
{[%clk 0:01:14.8]} 27. Rhg1 {[%clk 0:01:39.2]} 27... Rc8 {[%clk 0:01:08.2]} 28.
Rg2 {[%clk 0:01:27.9]} 28... Bc5 {[%clk 0:00:58.3]} 29. Bc1 {[%clk 0:01:25.2]}
29... Qe7 {[%clk 0:00:56.7]} 30. g5 {[%clk 0:01:24.7]} 30... hxg5 {[%clk
0:00:54.7]} 31. Bxg5 {[%clk 0:01:24.4]} 31... Qc7 {[%clk 0:00:54.6]} 32. h6
{[%clk 0:01:19.1]} 32... Bf8 {[%clk 0:00:48.5]} 33. h7 {[%clk 0:01:15.4]} 33...
Qc3 {[%clk 0:00:45.6]} 34. Qxc3 {[%clk 0:01:10.7]} 34... Rxc3 {[%clk 0:00:45.2]}
35. Rh1 {[%clk 0:01:09.7]} 35... Bg7 {[%clk 0:00:33.4]} 36. Bf6 {[%clk
0:01:04.6]} 36... Bxf6 {[%clk 0:00:32.9]} 37. Rg8+ {[%clk 0:00:59.2]} 37... Kd7
{[%clk 0:00:29.9]} 38. exf6 {[%clk 0:00:58.3]} 38... Rc8 {[%clk 0:00:30.5]} 39.
Rg7 {[%clk 0:00:57.9]} 39... Rcf8 {[%clk 0:00:29]} 40. Rh5 {[%clk 0:00:52.6]}
40... Kd6 {[%clk 0:00:27.5]} 41. Rhg5 {[%clk 0:00:51.9]} 41... e5 {[%clk
0:00:07.4]} 42. Rg8 {[%clk 0:00:51]} 1-0

[Event "*** Titled Tuesday Blitz"]
[Site "Chess.com"]
[Date "2021.02.02"]
[Round "4"]
[White "CSB7"]
[Black "chess4ever007"]
[Result "1/2-1/2"]
[WhiteElo "2585"]
[BlackElo "2365"]
[TimeControl "180+1"]
[EndTime "10:41:30 PST"]
[Termination "Game drawn by agreement"]

1. e4 {[%clk 0:03:00.7]} 1... c5 {[%clk 0:02:52.2]} 2. Nf3 {[%clk 0:02:58.5]}
2... e6 {[%clk 0:02:52.3]} 3. b3 {[%clk 0:02:57.8]} 3... Nc6 {[%clk 0:02:52]} 4.
Bb2 {[%clk 0:02:57.4]} 4... a6 {[%clk 0:02:45.6]} 5. c4 {[%clk 0:02:55]} 5... d6
{[%clk 0:02:40]} 6. d4 {[%clk 0:02:53.2]} 6... cxd4 {[%clk 0:02:38.6]} 7. Nxd4
{[%clk 0:02:54.1]} 7... Nf6 {[%clk 0:02:38]} 8. Nc3 {[%clk 0:02:52.2]} 8... d5
{[%clk 0:02:22.9]} 9. cxd5 {[%clk 0:02:34.5]} 9... exd5 {[%clk 0:02:21.2]} 10.
exd5 {[%clk 0:02:27]} 10... Nxd5 {[%clk 0:02:19.3]} 11. Nxc6 {[%clk 0:02:22.8]}
11... bxc6 {[%clk 0:02:13.9]} 12. Nxd5 {[%clk 0:02:20.7]} 12... cxd5 {[%clk
0:02:12.9]} 13. Qd2 {[%clk 0:02:16.7]} 13... a5 {[%clk 0:01:44.4]} 14. Bb5+
{[%clk 0:02:04.4]} 14... Bd7 {[%clk 0:01:42.9]} 15. Qxd5 {[%clk 0:01:24.2]}
15... Bb4+ {[%clk 0:01:42.1]} 16. Kf1 {[%clk 0:01:24.5]} 16... Bxb5+ {[%clk
0:01:34]} 17. Qxb5+ {[%clk 0:01:24.4]} 17... Kf8 {[%clk 0:01:34.3]} 18. h4
{[%clk 0:00:39.9]} 18... Rb8 {[%clk 0:01:24.5]} 19. Qe2 {[%clk 0:00:39.4]} 19...
h5 {[%clk 0:01:18.1]} 20. Rd1 {[%clk 0:00:35]} 20... Qe7 {[%clk 0:01:18.2]} 21.
Rh3 {[%clk 0:00:18.8]} 21... f6 {[%clk 0:01:12.7]} 22. Rhd3 {[%clk 0:00:14.4]}
22... Qxe2+ {[%clk 0:00:46.7]} 23. Kxe2 {[%clk 0:00:15.3]} 23... Kf7 {[%clk
0:00:47.4]} 24. Rd7+ {[%clk 0:00:15.5]} 24... Kg6 {[%clk 0:00:47.6]} 25. Ra7
{[%clk 0:00:15.7]} 25... Rhe8+ {[%clk 0:00:46.3]} 26. Kf3 {[%clk 0:00:15.5]}
26... Rb5 {[%clk 0:00:43]} 27. Rdd7 {[%clk 0:00:08.4]} 27... Rf5+ {[%clk
0:00:37.2]} 28. Kg3 {[%clk 0:00:09.2]} 28... Bf8 {[%clk 0:00:38.1]} 29. Bd4
{[%clk 0:00:06.6]} 29... Re4 {[%clk 0:00:37.4]} 30. Be3 {[%clk 0:00:06.2]} 30...
Re8 {[%clk 0:00:29.3]} 31. Bc5 {[%clk 0:00:03.9]} 1/2-1/2

[Event "*** Titled Tuesday Blitz"]
[Site "Chess.com"]
[Date "2021.02.02"]
[Round "4"]
[White "SHIVACalypso"]
[Black "VladimirPotkin"]
[Result "0-1"]
[WhiteElo "2370"]
[BlackElo "2639"]
[TimeControl "180+1"]
[EndTime "10:41:32 PST"]
[Termination "VladimirPotkin won by resignation"]

1. Nf3 {[%clk 0:03:00.9]} 1... Nf6 {[%clk 0:02:56.4]} 2. c4 {[%clk 0:03:00.9]}
2... e6 {[%clk 0:02:54.6]} 3. g3 {[%clk 0:02:55.3]} 3... d5 {[%clk 0:02:55.5]}
4. Bg2 {[%clk 0:02:55]} 4... dxc4 {[%clk 0:02:55.4]} 5. Qa4+ {[%clk 0:02:54.5]}
5... c6 {[%clk 0:02:55.3]} 6. Qxc4 {[%clk 0:02:55.1]} 6... b5 {[%clk 0:02:55.9]}
7. Qc2 {[%clk 0:02:54.4]} 7... Bb7 {[%clk 0:02:56.3]} 8. O-O {[%clk 0:02:54.2]}
8... Nbd7 {[%clk 0:02:56.3]} 9. d3 {[%clk 0:02:52.9]} 9... c5 {[%clk 0:02:56.3]}
10. b3 {[%clk 0:02:52.2]} 10... Be7 {[%clk 0:02:55.8]} 11. a3 {[%clk 0:02:52.7]}
11... O-O {[%clk 0:02:55.5]} 12. Bb2 {[%clk 0:02:53.1]} 12... Rc8 {[%clk
0:02:55.8]} 13. Nbd2 {[%clk 0:02:53.6]} 13... a6 {[%clk 0:02:55.8]} 14. Rac1
{[%clk 0:02:54]} 14... h6 {[%clk 0:02:55.8]} 15. Qb1 {[%clk 0:02:54.3]} 15...
Qb6 {[%clk 0:02:56.3]} 16. Qa1 {[%clk 0:02:54.2]} 16... Rfe8 {[%clk 0:02:56.8]}
17. Ne5 {[%clk 0:02:53.5]} 17... Nxe5 {[%clk 0:02:56.6]} 18. Bxe5 {[%clk
0:02:53.6]} 18... Bxg2 {[%clk 0:02:56.8]} 19. Kxg2 {[%clk 0:02:54.5]} 19... Qb7+
{[%clk 0:02:56.7]} 20. Nf3 {[%clk 0:02:54.2]} 20... Red8 {[%clk 0:02:55]} 21.
Rc2 {[%clk 0:02:52.8]} 21... Qd5 {[%clk 0:02:54.5]} 22. Qb2 {[%clk 0:02:42.4]}
22... Ne8 {[%clk 0:02:32.7]} 23. Rfc1 {[%clk 0:02:40.4]} 23... Bf6 {[%clk
0:02:28.5]} 24. Bxf6 {[%clk 0:02:39.9]} 24... Nxf6 {[%clk 0:02:28.7]} 25. Qe5
{[%clk 0:02:19.7]} 25... Qxb3 {[%clk 0:02:27.9]} 26. Rxc5 {[%clk 0:02:19.4]}
26... Rxc5 {[%clk 0:02:27.2]} 27. Qxc5 {[%clk 0:02:19.9]} 27... Nd5 {[%clk
0:02:08.6]} 28. Ne5 {[%clk 0:02:09.8]} 28... Qb2 {[%clk 0:02:07]} 29. Nc6 {[%clk
0:01:37.1]} 29... Re8 {[%clk 0:02:05.9]} 30. e4 {[%clk 0:01:24.5]} 30... Nf6
{[%clk 0:02:00.4]} 31. Qc3 {[%clk 0:01:08.3]} 31... Qe2 {[%clk 0:01:47.4]} 32.
Nd4 {[%clk 0:00:50.8]} 32... Qh5 {[%clk 0:01:43.6]} 33. Nb3 {[%clk 0:00:45.8]}
33... Rd8 {[%clk 0:01:31.1]} 34. Nc5 {[%clk 0:00:38]} 34... Rc8 {[%clk
0:01:30.7]} 35. Qd4 {[%clk 0:00:26.2]} 35... Qe2 {[%clk 0:01:23.1]} 36. Nb3
{[%clk 0:00:10.5]} 36... Rxc1 {[%clk 0:01:21.9]} 37. Nxc1 {[%clk 0:00:11.4]}
37... Qc2 {[%clk 0:01:22.4]} 38. Qe3 {[%clk 0:00:07.5]} 38... Ng4 {[%clk
0:01:22.4]} 39. Qf3 {[%clk 0:00:07]} 39... Nxf2 {[%clk 0:01:20.9]} 40. Qxf2
{[%clk 0:00:06.4]} 40... Qxc1 {[%clk 0:01:21.2]} 41. Qb6 {[%clk 0:00:05.3]}
41... Qxa3 {[%clk 0:01:19.1]} 42. Qd8+ {[%clk 0:00:04.3]} 42... Kh7 {[%clk
0:01:19.3]} 43. Qd7 {[%clk 0:00:03.5]} 43... Qb2+ {[%clk 0:01:17.6]} 44. Kh3
{[%clk 0:00:03.8]} 44... Qf6 {[%clk 0:01:14.4]} 45. Qc6 {[%clk 0:00:03.7]} 45...
Qf1+ {[%clk 0:01:11.8]} 46. Kh4 {[%clk 0:00:01.8]} 46... Qxd3 {[%clk 0:01:12.7]}
47. Qxa6 {[%clk 0:00:01.7]} 47... Qxe4+ {[%clk 0:01:12.7]} 48. Kh3 {[%clk
0:00:02.3]} 48... b4 {[%clk 0:01:12.8]} 49. Qf1 {[%clk 0:00:01.7]} 49... Qf5+
{[%clk 0:01:12.4]} 50. Qxf5+ {[%clk 0:00:01.5]} 50... exf5 {[%clk 0:01:13.3]}
51. Kg2 {[%clk 0:00:02.3]} 51... b3 {[%clk 0:01:13.4]} 0-1

[Event "*** Titled Tuesday Blitz"]
[Site "Chess.com"]
[Date "2021.02.02"]
[Round "4"]
[White "ruvat"]
[Black "LenkaPtacnikova"]
[Result "1-0"]
[WhiteElo "2329"]
[BlackElo "2102"]
[TimeControl "180+1"]
[EndTime "10:41:33 PST"]
[Termination "ruvat won on time"]

1. d4 {[%clk 0:03:00.9]} 1... Nf6 {[%clk 0:02:52.1]} 2. c4 {[%clk 0:02:59.6]}
2... e6 {[%clk 0:02:52]} 3. g3 {[%clk 0:02:58.6]} 3... d5 {[%clk 0:02:50.4]} 4.
Nf3 {[%clk 0:02:58.1]} 4... Bb4+ {[%clk 0:02:48.6]} 5. Bd2 {[%clk 0:02:57.6]}
5... Be7 {[%clk 0:02:48.4]} 6. Bg2 {[%clk 0:02:56.8]} 6... O-O {[%clk
0:02:47.9]} 7. O-O {[%clk 0:02:56]} 7... dxc4 {[%clk 0:02:39.3]} 8. Qa4 {[%clk
0:02:54.5]} 8... a6 {[%clk 0:02:33.3]} 9. Qxc4 {[%clk 0:02:53.6]} 9... b5 {[%clk
0:02:33.5]} 10. Qc2 {[%clk 0:02:53.6]} 10... Bb7 {[%clk 0:02:34]} 11. Rc1 {[%clk
0:02:42.9]} 11... Nc6 {[%clk 0:02:29.4]} 12. Qd3 {[%clk 0:02:24.4]} 12... Nb4
{[%clk 0:02:22]} 13. Bxb4 {[%clk 0:02:23.6]} 13... Bxb4 {[%clk 0:02:21.3]} 14.
a3 {[%clk 0:02:22.2]} 14... Be4 {[%clk 0:02:18.2]} 15. Qd1 {[%clk 0:02:20.6]}
15... Bd6 {[%clk 0:02:08.4]} 16. Nbd2 {[%clk 0:02:20.1]} 16... Bb7 {[%clk
0:02:02.9]} 17. Nb3 {[%clk 0:02:19.6]} 17... Bd5 {[%clk 0:01:56.3]} 18. Nc5
{[%clk 0:02:17.3]} 18... Ne4 {[%clk 0:01:52.8]} 19. Nd3 {[%clk 0:02:04.5]} 19...
Rc8 {[%clk 0:01:47.4]} 20. b4 {[%clk 0:01:53.8]} 20... a5 {[%clk 0:01:20.6]} 21.
Rab1 {[%clk 0:01:46.5]} 21... c6 {[%clk 0:01:17.4]} 22. Nfe5 {[%clk 0:01:43.4]}
22... axb4 {[%clk 0:01:08]} 23. axb4 {[%clk 0:01:40.3]} 23... f6 {[%clk
0:00:51.9]} 24. Nf3 {[%clk 0:01:34.3]} 24... Re8 {[%clk 0:00:50.8]} 25. Rc2
{[%clk 0:01:14.1]} 25... Qe7 {[%clk 0:00:49.9]} 26. Qc1 {[%clk 0:01:04.3]} 26...
Rc7 {[%clk 0:00:12.1]} 27. Nfe1 {[%clk 0:01:02.9]} 27... f5 {[%clk 0:00:11]} 28.
Nf3 {[%clk 0:01:01.5]} 28... Ra8 {[%clk 0:00:09.7]} 29. Nfe5 {[%clk 0:01:01.1]}
29... Ra4 {[%clk 0:00:08.3]} 30. f3 {[%clk 0:00:51.4]} 30... Nf6 {[%clk
0:00:06.8]} 31. Qd2 {[%clk 0:00:45.3]} 31... g6 {[%clk 0:00:02]} 32. Nf4 {[%clk
0:00:43.7]} 32... Kg7 {[%clk 0:00:01.4]} 33. h4 {[%clk 0:00:32.6]} 33... Kg8
{[%clk 0:00:01.4]} 34. Nfd3 {[%clk 0:00:30.4]} 1-0

[Event "*** Titled Tuesday Blitz"]
[Site "Chess.com"]
[Date "2021.02.02"]
[Round "4"]
[White "SharapovEvgeny"]
[Black "TigrVShlyape"]
[Result "1/2-1/2"]
[WhiteElo "2470"]
[BlackElo "2835"]
[TimeControl "180+1"]
[EndTime "10:41:35 PST"]
[Termination "Game drawn by stalemate"]

1. e4 {[%clk 0:03:00]} 1... e5 {[%clk 0:02:59.4]} 2. Nf3 {[%clk 0:02:59.7]} 2...
Nc6 {[%clk 0:02:59.8]} 3. Nc3 {[%clk 0:02:57.7]} 3... Nf6 {[%clk 0:02:58.1]} 4.
Bb5 {[%clk 0:02:57.3]} 4... Bb4 {[%clk 0:02:55.5]} 5. Nd5 {[%clk 0:02:56.7]}
5... Be7 {[%clk 0:02:47.2]} 6. Nxf6+ {[%clk 0:02:52.3]} 6... Bxf6 {[%clk
0:02:46.8]} 7. O-O {[%clk 0:02:51.9]} 7... O-O {[%clk 0:02:45.5]} 8. Re1 {[%clk
0:02:50.1]} 8... d6 {[%clk 0:02:45.2]} 9. h3 {[%clk 0:02:48.9]} 9... Bd7 {[%clk
0:02:44]} 10. c3 {[%clk 0:02:48.2]} 10... g6 {[%clk 0:02:41.1]} 11. d4 {[%clk
0:02:44.9]} 11... Nxd4 {[%clk 0:02:37.1]} 12. Nxd4 {[%clk 0:02:43.1]} 12... exd4
{[%clk 0:02:35.7]} 13. Bxd7 {[%clk 0:02:42.5]} 13... Qxd7 {[%clk 0:02:28.4]} 14.
cxd4 {[%clk 0:02:41.8]} 14... Rfe8 {[%clk 0:02:26.7]} 15. Bf4 {[%clk 0:02:35.2]}
15... Rad8 {[%clk 0:02:17]} 16. Qd2 {[%clk 0:02:30.7]} 16... c5 {[%clk
0:02:15.1]} 17. dxc5 {[%clk 0:02:09.9]} 17... dxc5 {[%clk 0:02:13.5]} 18. Qxd7
{[%clk 0:02:08.8]} 18... Rxd7 {[%clk 0:02:13.1]} 19. e5 {[%clk 0:02:08.8]} 19...
Bg7 {[%clk 0:02:03.9]} 20. Rad1 {[%clk 0:02:07.8]} 20... Red8 {[%clk 0:02:01.5]}
21. Rxd7 {[%clk 0:01:57.5]} 21... Rxd7 {[%clk 0:02:01.3]} 22. b3 {[%clk
0:01:43.4]} 22... Kf8 {[%clk 0:02:00.2]} 23. e6 {[%clk 0:01:32.2]} 23... fxe6
{[%clk 0:01:59.6]} 24. Rxe6 {[%clk 0:01:31.2]} 24... Kf7 {[%clk 0:01:57.6]} 25.
Rd6 {[%clk 0:01:29.3]} 25... Rxd6 {[%clk 0:01:54.9]} 26. Bxd6 {[%clk 0:01:28.9]}
26... Bd4 {[%clk 0:01:54.5]} 27. Kf1 {[%clk 0:01:27]} 27... Ke6 {[%clk
0:01:53.4]} 28. Bb8 {[%clk 0:01:26.2]} 28... a6 {[%clk 0:01:53.3]} 29. Ke2
{[%clk 0:01:25.6]} 29... Kd5 {[%clk 0:01:53.6]} 30. f3 {[%clk 0:01:22.2]} 30...
c4 {[%clk 0:01:53.9]} 31. bxc4+ {[%clk 0:01:21.5]} 31... Kxc4 {[%clk 0:01:53.9]}
32. f4 {[%clk 0:01:14.1]} 32... b5 {[%clk 0:01:53.7]} 33. g4 {[%clk 0:01:13.1]}
33... a5 {[%clk 0:01:50.8]} 34. f5 {[%clk 0:01:13]} 34... gxf5 {[%clk
0:01:50.4]} 35. gxf5 {[%clk 0:01:13]} 35... a4 {[%clk 0:01:45.7]} 36. Kd2 {[%clk
0:00:41.9]} 36... b4 {[%clk 0:01:39.2]} 37. Kc2 {[%clk 0:00:40.7]} 37... Bf6
{[%clk 0:01:38]} 38. Bf4 {[%clk 0:00:28.5]} 38... h5 {[%clk 0:01:32.6]} 39. Bc1
{[%clk 0:00:25.6]} 39... b3+ {[%clk 0:01:28.5]} 40. axb3+ {[%clk 0:00:25.1]}
40... axb3+ {[%clk 0:01:28.7]} 41. Kb1 {[%clk 0:00:24.9]} 41... Kd5 {[%clk
0:01:16.6]} 42. Bb2 {[%clk 0:00:24.8]} 42... Bxb2 {[%clk 0:00:52.4]} 43. Kxb2
{[%clk 0:00:24.3]} 43... Ke5 {[%clk 0:00:50.4]} 44. Kxb3 {[%clk 0:00:23.9]}
44... Kxf5 {[%clk 0:00:50.6]} 45. Kc2 {[%clk 0:00:24.1]} 45... Kf4 {[%clk
0:00:50.7]} 46. Kd2 {[%clk 0:00:24.3]} 46... Kg3 {[%clk 0:00:49.5]} 47. Ke1
{[%clk 0:00:23.9]} 47... h4 {[%clk 0:00:48.8]} 48. Kf1 {[%clk 0:00:23.6]} 48...
Kxh3 {[%clk 0:00:49.3]} 49. Kg1 {[%clk 0:00:23.7]} 49... Kg3 {[%clk 0:00:49.8]}
50. Kh1 {[%clk 0:00:23.7]} 50... h3 {[%clk 0:00:50.5]} 51. Kg1 {[%clk 0:00:24]}
51... h2+ {[%clk 0:00:51.2]} 52. Kh1 {[%clk 0:00:24.1]} 52... Kh3 {[%clk
0:00:51.9]} 1/2-1/2

[Event "*** Titled Tuesday Blitz"]
[Site "Chess.com"]
[Date "2021.02.02"]
[Round "4"]
[White "Chimpinha"]
[Black "nikitadovbnya2008"]
[Result "1-0"]
[WhiteElo "2395"]
[BlackElo "2137"]
[TimeControl "180+1"]
[EndTime "10:41:35 PST"]
[Termination "Chimpinha won on time"]

1. d4 {[%clk 0:03:00.9]} 1... d5 {[%clk 0:02:59.9]} 2. c4 {[%clk 0:02:55.8]}
2... e6 {[%clk 0:03:00.4]} 3. Nc3 {[%clk 0:02:55.4]} 3... Nf6 {[%clk 0:03:00.8]}
4. Bg5 {[%clk 0:02:54.4]} 4... Nbd7 {[%clk 0:02:58]} 5. e3 {[%clk 0:02:54.4]}
5... c6 {[%clk 0:02:58.1]} 6. cxd5 {[%clk 0:02:53.4]} 6... exd5 {[%clk 0:02:58]}
7. Bd3 {[%clk 0:02:53.2]} 7... Be7 {[%clk 0:02:58.4]} 8. Nge2 {[%clk 0:02:53]}
8... O-O {[%clk 0:02:58.2]} 9. Qc2 {[%clk 0:02:53.5]} 9... Re8 {[%clk
0:02:57.8]} 10. O-O {[%clk 0:02:53.2]} 10... Nf8 {[%clk 0:02:58.2]} 11. f3
{[%clk 0:02:49.4]} 11... g6 {[%clk 0:02:58.7]} 12. e4 {[%clk 0:02:38.9]} 12...
dxe4 {[%clk 0:02:27]} 13. fxe4 {[%clk 0:02:38]} 13... Ne6 {[%clk 0:02:20.5]} 14.
Bxf6 {[%clk 0:02:01.1]} 14... Bxf6 {[%clk 0:02:21.4]} 15. d5 {[%clk 0:02:01.5]}
15... Nd4 {[%clk 0:01:30.6]} 16. Nxd4 {[%clk 0:01:41.5]} 16... Bxd4+ {[%clk
0:01:31.5]} 17. Kh1 {[%clk 0:01:41]} 17... Bg4 {[%clk 0:01:20]} 18. Bc4 {[%clk
0:01:16.3]} 18... Rf8 {[%clk 0:00:47.7]} 19. Qd3 {[%clk 0:00:58.7]} 19... Be5
{[%clk 0:00:42.5]} 20. h3 {[%clk 0:00:52.4]} 20... Qh4 {[%clk 0:00:38.3]} 21.
Nd1 {[%clk 0:00:34.6]} 21... b5 {[%clk 0:00:17.5]} 22. Bb3 {[%clk 0:00:34]}
22... c5 {[%clk 0:00:16.9]} 23. Bc2 {[%clk 0:00:20.5]} 23... c4 {[%clk
0:00:12.2]} 24. Qe3 {[%clk 0:00:20.3]} 24... Bd7 {[%clk 0:00:03.5]} 25. Rb1
{[%clk 0:00:17.6]} 25... a5 {[%clk 0:00:03]} 26. Nf2 {[%clk 0:00:17.1]} 26...
Qe7 {[%clk 0:00:02.2]} 27. b3 {[%clk 0:00:16.7]} 1-0

[Event "*** Titled Tuesday Blitz"]
[Site "Chess.com"]
[Date "2021.02.02"]
[Round "4"]
[White "rududuyk"]
[Black "oogee"]
[Result "0-1"]
[WhiteElo "2141"]
[BlackElo "2349"]
[TimeControl "180+1"]
[EndTime "10:41:36 PST"]
[Termination "oogee won on time"]

1. e4 {[%clk 0:03:00.9]} 1... c5 {[%clk 0:02:59.2]} 2. Nf3 {[%clk 0:03:00.3]}
2... d6 {[%clk 0:02:57.7]} 3. d4 {[%clk 0:03:00.6]} 3... cxd4 {[%clk 0:02:56.8]}
4. Nxd4 {[%clk 0:03:01.5]} 4... Nf6 {[%clk 0:02:55.7]} 5. Nc3 {[%clk 0:03:02.1]}
5... g6 {[%clk 0:02:55.8]} 6. Be3 {[%clk 0:03:00.8]} 6... Bg7 {[%clk 0:02:54.5]}
7. f3 {[%clk 0:02:59]} 7... O-O {[%clk 0:02:51.3]} 8. Bc4 {[%clk 0:02:56.7]}
8... Nc6 {[%clk 0:02:49.3]} 9. Qd2 {[%clk 0:02:54]} 9... Bd7 {[%clk 0:02:43.6]}
10. Bb3 {[%clk 0:02:53.3]} 10... Nxd4 {[%clk 0:02:37.5]} 11. Bxd4 {[%clk
0:02:50.8]} 11... b5 {[%clk 0:02:38.4]} 12. a4 {[%clk 0:02:16.5]} 12... a6
{[%clk 0:02:02.9]} 13. axb5 {[%clk 0:02:09.4]} 13... axb5 {[%clk 0:02:02]} 14.
O-O {[%clk 0:02:09.6]} 14... Bc6 {[%clk 0:01:51.6]} 15. Na2 {[%clk 0:02:06.7]}
15... Bb7 {[%clk 0:01:19.6]} 16. Nb4 {[%clk 0:02:04.1]} 16... e6 {[%clk
0:01:14.6]} 17. c3 {[%clk 0:01:30.7]} 17... Qc7 {[%clk 0:01:08.4]} 18. Qe3
{[%clk 0:01:16.4]} 18... Rfe8 {[%clk 0:00:35.7]} 19. Qg5 {[%clk 0:01:05.7]}
19... Qd7 {[%clk 0:00:33]} 20. Bxf6 {[%clk 0:00:45]} 20... h6 {[%clk 0:00:32.7]}
21. Qh4 {[%clk 0:00:44.9]} 21... g5 {[%clk 0:00:33]} 22. Bxg5 {[%clk 0:00:44.8]}
22... hxg5 {[%clk 0:00:33.9]} 23. Qxg5 {[%clk 0:00:45]} 23... Kf8 {[%clk
0:00:24.7]} 24. Rfd1 {[%clk 0:00:21.1]} 24... Qe7 {[%clk 0:00:13.9]} 25. Qxb5
{[%clk 0:00:17.3]} 25... Rab8 {[%clk 0:00:14.2]} 26. Qh5 {[%clk 0:00:14.9]}
26... Red8 {[%clk 0:00:10.8]} 27. Ra7 {[%clk 0:00:13.6]} 27... Qf6 {[%clk
0:00:10.9]} 28. Rda1 {[%clk 0:00:07.8]} 28... Bh6 {[%clk 0:00:10.7]} 29. Kh1
{[%clk 0:00:06.2]} 29... Kg7 {[%clk 0:00:10.9]} 30. Qg4+ {[%clk 0:00:03.7]}
30... Kh7 {[%clk 0:00:11.1]} 0-1